bitfinex/quotes_BTCUSD_20251004
["timestamp","ask_amount","ask_price","bid_price","bid_amount"]
[1759546538219,0.0136847,121920.0,121910.0,0.88350149]
[1759546540345,0.17772669,121920.0,121910.0,0.88350149]
[1759546540738,0.17772669,121920.0,121910.0,0.29324604]
[1759546540941,0.17772669,121920.0,121910.0,0.71944604]
[1759546541729,0.60884725,121920.0,121910.0,0.06196604]
[1759546541945,0.69196931,121920.0,121910.0,0.66052]
[1759546542180,0.69196931,121920.0,121910.0,0.39332362]
[1759546542181,1.12308987,121920.0,121910.0,0.39332362]
[1759546542311,0.69196931,121920.0,121910.0,0.37119703]
[1759546542707,0.71658553,121920.0,121910.0,0.37119703]
[1759546542902,0.71158553,121920.0,121910.0,0.37119703]
[1759546543266,0.71158553,121920.0,121910.0,0.36819703]
[1759546543471,0.72558553,121920.0,121910.0,0.33870738]
[1759546544606,0.72558553,121920.0,121910.0,0.02210738]
[1759546544789,0.72558553,121920.0,121910.0,0.33870738]
[1759546544996,1.49670609,121920.0,121910.0,0.02210738]
[1759546545146,1.06558553,121920.0,121910.0,0.3166]
[1759546545360,0.69502116,121920.0,121910.0,0.3166]
[1759546545560,1.12614172,121920.0,121910.0,0.3166]
[1759546551078,0.69502116,121920.0,121910.0,0.3166]
[1759546551530,1.12614172,121920.0,121910.0,0.3166]
[1759546552537,0.69502116,121920.0,121910.0,0.3166]
[1759546552740,1.12614172,121920.0,121910.0,0.3166]
[1759546555864,0.69502116,121920.0,121910.0,0.3166]
[1759546556069,1.12614172,121920.0,121910.0,0.3166]
[1759546559019,0.16405545,121910.0,121900.0,0.00054926]
[1759546559224,0.67829807,121910.0,121900.0,0.31726926]
[1759546559429,0.68025807,121910.0,121900.0,0.31726926]
[1759546559585,0.68349807,121910.0,121900.0,0.31722926]
[1759546559782,0.7081159,121910.0,121900.0,0.31722926]
[1759546560549,0.7081159,121910.0,121900.0,0.31726926]
[1759546560979,0.7131159,121910.0,121900.0,0.31726926]
[1759546561524,0.7231159,121910.0,121900.0,0.31726926]
[1759546561725,0.7231159,121910.0,121900.0,0.00054926]
[1759546562100,1.0631159,121910.0,121900.0,0.16510926]
[1759546562506,1.0631159,121910.0,121900.0,0.24162926]
[1759546562712,1.0631159,121910.0,121900.0,0.21762926]
[1759546562943,1.0631159,121910.0,121900.0,0.30286926]
[1759546563152,1.0631159,121910.0,121870.0,0.05159703]
[1759546563153,0.16409583,121880.0,121870.0,0.05159703]
[1759546563393,0.67833845,121880.0,121870.0,0.3390154]
[1759546563602,0.68353845,121880.0,121870.0,0.31690802]
[1759546564005,0.708164,121880.0,121870.0,0.00014802]
[1759546564220,0.708164,121880.0,121870.0,0.31694802]
[1759546564428,0.33979766,121880.0,121870.0,0.31994802]
[1759546564674,0.33979766,121880.0,121870.0,0.32094802]
[1759546565103,0.34479766,121880.0,121870.0,0.31694802]
[1759546565535,0.34979766,121880.0,121870.0,0.31694802]
[1759546566342,0.36355008,121880.0,121870.0,0.31694802]
[1759546566471,0.34979766,121880.0,121870.0,0.31694802]
[1759546567503,0.36313954,121880.0,121870.0,0.31694802]
[1759546568198,0.36313954,121880.0,121870.0,0.00014802]
[1759546568470,0.36313954,121880.0,121870.0,0.16474802]
[1759546568650,0.36313954,121880.0,121870.0,0.08012243]
[1759546568860,0.36313954,121880.0,121870.0,0.16536243]
[1759546569060,0.36313954,121880.0,121870.0,0.26592243]
[1759546569271,0.74687657,121880.0,121870.0,0.26592243]
[1759546569467,0.74687657,121880.0,121870.0,0.00076243]
[1759546569621,0.74687657,121880.0,121870.0,0.31752243]
[1759546571148,1.08687657,121880.0,121870.0,0.31760243]
[1759546579573,1.08687657,121880.0,121870.0,0.23228243]
[1759546579977,0.16410929,121870.0,121860.0,0.08528]
[1759546580199,0.17234046,121860.0,121830.0,0.39275703]
[1759546580544,0.1661097,121840.0,121830.0,0.39290507]
[1759546580678,0.1661097,121840.0,121830.0,0.47818507]
[1759546580881,0.1693497,121840.0,121830.0,0.47818507]
[1759546581295,0.1693497,121840.0,121830.0,0.70970507]
[1759546581725,0.1693497,121840.0,121830.0,0.72070507]
[1759546581929,0.1641497,121840.0,121830.0,0.72070507]
[1759546582147,0.1693497,121840.0,121830.0,0.72070507]
[1759546582443,0.1693497,121840.0,121830.0,0.72670507]
[1759546582639,0.1693497,121840.0,121830.0,0.74003088]
[1759546583185,0.1693497,121840.0,121830.0,0.72670507]
[1759546583391,0.1693497,121840.0,121830.0,0.42644]
[1759546583640,0.16416317,121830.0,121820.0,0.37053921]
[1759546583813,0.16951097,121830.0,121820.0,0.42644]
[1759546584374,0.16418628,121820.0,121800.0,0.24127458]
[1759546584575,0.16418628,121820.0,121810.0,4.056621]
[1759546584874,0.16438628,121820.0,121810.0,0.67033047]
[1759546585805,0.16438628,121820.0,121810.0,0.658]
[1759546586226,0.16438628,121820.0,121810.0,0.82219013]
[1759546586426,0.0052,121820.0,121810.0,0.82219013]
[1759546586819,0.16937665,121820.0,121810.0,0.82219013]
[1759546587171,0.17637665,121820.0,121810.0,0.82219013]
[1759546588795,0.007,121820.0,121810.0,0.84677989]
[1759546589232,0.007,121820.0,121810.0,0.90330709]
[1759546589643,0.007,121820.0,121810.0,0.85907312]
[1759546590845,0.0122,121820.0,121810.0,0.86030272]
[1759546590982,0.00901,121820.0,121810.0,0.86030272]
[1759546591196,0.007,121820.0,121810.0,0.86030272]
[1759546591960,0.00901,121820.0,121810.0,0.86030272]
[1759546592107,0.0122,121820.0,121810.0,0.86030272]
[1759546592314,0.0122,121820.0,121810.0,0.90453669]
[1759546593139,0.007,121820.0,121810.0,0.90453669]
[1759546594142,0.00901,121820.0,121810.0,0.90453669]
[1759546596150,0.007,121820.0,121810.0,0.90453669]
[1759546596373,0.00901,121820.0,121810.0,0.90453669]
[1759546596525,0.0122,121820.0,121810.0,0.90453669]
[1759546597885,0.00901,121820.0,121810.0,0.90453669]
[1759546598074,0.0122,121820.0,121810.0,0.86030272]
[1759546599591,0.0122,121820.0,121810.0,0.01352283]
[1759546599836,0.17637665,121820.0,121810.0,0.5739896]
[1759546600033,0.0122,121820.0,121810.0,0.82345973]
[1759546600249,0.007,121820.0,121810.0,0.82345973]
[1759546600449,0.007,121820.0,121810.0,0.90701553]
[1759546600599,0.007,121820.0,121810.0,0.24897553]
[1759546600822,0.007,121820.0,121810.0,0.84804949]
[1759546601399,0.007,121820.0,121810.0,0.24897553]
[1759546601749,0.007,121820.0,121810.0,0.84804949]
[1759546602445,0.007,121820.0,121810.0,0.90701553]
[1759546603107,0.007,121820.0,121810.0,0.91916427]
[1759546604411,0.007,121820.0,121810.0,4.8376418]
[1759546604638,0.0001478,121830.0,121820.0,0.50417665]
[1759546604860,0.0001478,121830.0,121820.0,4.08526719]
[1759546605493,0.0001478,121830.0,121820.0,4.14004497]
[1759546605917,0.0101478,121830.0,121820.0,4.14004497]
[1759546606122,0.0121478,121830.0,121820.0,4.0663811]
[1759546606366,0.0121478,121830.0,121820.0,4.13999782]
[1759546606569,0.0001478,121830.0,121820.0,4.13999782]
[1759546606727,0.0001478,121830.0,121820.0,4.14099782]
[1759546606903,0.0081478,121830.0,121820.0,4.14099782]
[1759546608750,0.0081478,121830.0,121820.0,4.0673811]
[1759546609324,0.0081478,121830.0,121820.0,4.17046188]
[1759546609500,0.0081478,121830.0,121820.0,4.16946188]
[1759546609700,0.0001478,121830.0,121820.0,4.23020321]
[1759546609907,0.0001478,121830.0,121820.0,4.23820321]
[1759546610132,0.0001478,121830.0,121820.0,4.24122779]
[1759546611942,0.0001478,121830.0,121820.0,4.47282779]
[1759546612753,0.0001478,121830.0,121820.0,4.81398779]
[1759546612952,0.0001478,121830.0,121820.0,5.24046779]
[1759546614476,0.06649765,121870.0,121860.0,0.16412276]
[1759546614682,0.06664567,121870.0,121860.0,3.9236293]
[1759546615122,0.06664567,121870.0,121860.0,4.28931291]
[1759546615333,0.00014802,121870.0,121860.0,4.56981183]
[1759546615536,0.00014802,121870.0,121860.0,3.99709183]
[1759546615751,0.01214802,121870.0,121860.0,4.65509183]
[1759546616282,0.00414802,121870.0,121860.0,4.65509183]
[1759546616691,0.00414802,121870.0,121860.0,4.61104629]
[1759546617435,0.00414802,121870.0,121860.0,4.65505509]
[1759546617436,0.00014802,121870.0,121860.0,4.65505509]
[1759546617593,0.00014802,121870.0,121860.0,4.61104629]
[1759546617820,0.01234802,121870.0,121860.0,0.38400835]
[1759546618066,0.17145731,121870.0,121860.0,0.45578094]
[1759546618404,0.17245731,121870.0,121860.0,0.68734094]
[1759546618537,0.17245731,121870.0,121860.0,0.60306094]
[1759546618749,0.17245731,121870.0,121860.0,0.68834094]
[1759546619366,0.17245731,121870.0,121860.0,0.03034094]
[1759546619711,0.17245731,121870.0,121860.0,0.68834094]
[1759546619913,0.17245731,121870.0,121860.0,0.68854579]
[1759546620322,0.17245731,121870.0,121860.0,0.65920485]
[1759546620526,0.17245731,121870.0,121860.0,0.03054579]
[1759546620733,0.17245731,121870.0,121860.0,0.65920485]
[1759546621117,0.17245731,121870.0,121860.0,0.65916485]
[1759546621321,0.17245731,121870.0,121860.0,0.68850579]
[1759546621762,0.00834802,121870.0,121860.0,0.68850579]
[1759546621936,0.02886168,121870.0,121860.0,0.68850579]
[1759546624158,0.02886168,121870.0,121860.0,0.85262855]
[1759546624326,0.00834802,121870.0,121860.0,0.85262855]
[1759546625563,0.00834802,121870.0,121860.0,0.03054579]
[1759546625882,0.02886168,121870.0,121860.0,0.68864678]
[1759546626085,0.02886168,121870.0,121860.0,0.85258855]
[1759546626485,0.02886168,121870.0,121850.0,0.57276589]
[1759546626720,0.02886168,121870.0,121860.0,0.42658267]
[1759546626925,0.02886168,121870.0,121860.0,0.59052276]
[1759546627079,0.02886168,121870.0,121860.0,0.4264]
[1759546627694,0.02886168,121870.0,121860.0,0.65788]
[1759546628724,0.02886168,121870.0,121860.0,0.65888]
[1759546629973,0.19297097,121870.0,121860.0,0.65888]
[1759546630174,0.17245731,121870.0,121860.0,0.08528]
[1759546631499,0.00834802,121870.0,121860.0,0.31676]
[1759546631702,0.02886168,121870.0,121860.0,0.31676]
[1759546633932,0.19297097,121870.0,121860.0,0.31676]
[1759546634134,0.17245731,121870.0,121860.0,0.31676]
[1759546634980,0.17245731,121870.0,121860.0,0.31672]
[1759546635180,0.17245731,121870.0,121860.0,0.65784]
[1759546637742,0.00834802,121870.0,121860.0,0.65784]
[1759546637960,0.02886168,121870.0,121860.0,0.65784]
[1759546638830,0.02886168,121870.0,121860.0,0.82196276]
[1759546639876,0.02886168,121870.0,121860.0,0.6578]
[1759546640103,0.19297146,121870.0,121860.0,0.6578]
[1759546640240,0.1724578,121870.0,121860.0,0.6578]
[1759546640441,0.1724578,121870.0,121850.0,0.24748124]
[1759546640666,0.1724578,121870.0,121860.0,0.6578]
[1759546646014,0.00834802,121870.0,121860.0,0.6578]
[1759546646241,0.02886168,121870.0,121860.0,0.6578]
[1759546646443,0.02886168,121870.0,121860.0,0.71652739]
[1759546647076,0.02886168,121870.0,121860.0,0.05872739]
[1759546647280,0.02886168,121870.0,121860.0,0.71652739]
[1759546647833,0.19297097,121870.0,121860.0,0.71652739]
[1759546648032,0.17245731,121870.0,121860.0,0.71652739]
[1759546649071,0.17245731,121870.0,121860.0,0.05872739]
[1759546649299,0.17245731,121870.0,121860.0,0.71652739]
[1759546650715,0.17245731,121870.0,121860.0,0.05872739]
[1759546651155,0.17245731,121870.0,121860.0,0.29012739]
[1759546651284,0.17245731,121870.0,121860.0,0.71652739]
[1759546652620,0.17245731,121870.0,121860.0,0.05872739]
[1759546652787,0.17245731,121870.0,121860.0,0.29012739]
[1759546653133,0.17245731,121870.0,121860.0,0.71652739]
[1759546655475,0.17245731,121870.0,121860.0,0.29012739]
[1759546655686,0.17245731,121870.0,121860.0,0.37540739]
[1759546658522,0.17245731,121870.0,121860.0,0.05872739]
[1759546658662,0.17245731,121870.0,121860.0,0.71652739]
[1759546662431,0.17245731,121870.0,121860.0,0.6578]
[1759546663308,0.16412276,121860.0,121850.0,0.39984739]
[1759546663532,0.16608276,121860.0,121850.0,0.71652739]
[1759546663744,0.16917276,121860.0,121850.0,0.6578]
[1759546664591,0.16917276,121860.0,121850.0,0.6608]
[1759546665325,0.16917276,121860.0,121850.0,0.003]
[1759546665468,0.16917276,121860.0,121850.0,0.7050334]
[1759546666763,0.17717276,121860.0,121850.0,0.7020334]
[1759546666964,0.18217276,121860.0,121850.0,0.7020334]
[1759546668812,0.18217276,121860.0,121850.0,0.70223828]
[1759546670204,0.18217276,121860.0,121850.0,0.04443828]
[1759546670382,0.26529482,121860.0,121850.0,0.073912]
[1759546670565,0.26529482,121860.0,121850.0,0.1149586]
[1759546670770,0.26529482,121860.0,121850.0,0.3463586]
[1759546671509,0.26529482,121860.0,121850.0,0.36845967]
[1759546674472,0.26529482,121860.0,121850.0,0.33898595]
[1759546677866,0.26529482,121860.0,121850.0,0.33902595]
[1759546678993,0.26529482,121860.0,121850.0,0.02230595]
[1759546679205,0.26529482,121860.0,121850.0,0.33902595]
[1759546681845,0.26529482,121860.0,121850.0,0.25374595]
[1759546682044,0.26529482,121860.0,121850.0,0.33902595]
[1759546682397,0.26529482,121860.0,121850.0,0.02230595]
[1759546682806,0.26529482,121860.0,121850.0,0.19170595]
[1759546690381,0.26529482,121860.0,121850.0,0.22117967]
[1759546694478,0.26529482,121860.0,121850.0,0.1990786]
[1759546700421,0.26529482,121860.0,121850.0,0.243312]
[1759546703253,0.28992292,121860.0,121850.0,0.243312]
[1759546719126,0.28992292,121860.0,121850.0,0.144741]
[1759546720296,0.28992292,121860.0,121850.0,0.376181]
[1759546723497,0.16414476,121850.0,121840.0,0.04427569]
[1759546723717,0.24726682,121850.0,121840.0,0.12955569]
[1759546724149,0.24726682,121850.0,121840.0,0.12976059]
[1759546724366,0.25233682,121850.0,121840.0,0.12976059]
[1759546724583,0.24726682,121850.0,121840.0,0.12976059]
[1759546724814,0.25026682,121850.0,121840.0,0.36116059]
[1759546725026,0.25721682,121850.0,121840.0,0.36116059]
[1759546725252,0.26033682,121850.0,121840.0,0.36116059]
[1759546726010,0.25526682,121850.0,121840.0,0.36116059]
[1759546726427,0.26033682,121850.0,121840.0,0.36116059]
[1759546727291,0.26033682,121850.0,121840.0,0.04448059]
[1759546727964,0.26033682,121850.0,121840.0,0.27588059]
[1759546728165,0.26033682,121850.0,121840.0,0.36116059]
[1759546731044,0.26033682,121850.0,121840.0,0.04448059]
[1759546731250,0.26033682,121850.0,121840.0,0.3168849]
[1759546731670,0.28496727,121850.0,121840.0,0.3168849]
[1759546734596,0.28496727,121850.0,121840.0,0.2316049]
[1759546734802,0.28496727,121850.0,121840.0,0.3168849]
[1759546736995,0.29613324,121850.0,121840.0,0.3168849]
[1759546737552,0.29613324,121850.0,121840.0,0.0002049]
[1759546737725,0.29613324,121850.0,121840.0,0.3168849]
[1759546741928,0.29613324,121850.0,121840.0,0.0002049]
[1759546742128,0.29613324,121850.0,121840.0,0.3168849]
[1759546747993,0.72792637,121850.0,121840.0,0.2316049]
[1759546748199,0.72792637,121850.0,121840.0,0.3168849]
[1759546748394,0.29613324,121850.0,121840.0,0.0002049]
[1759546748538,0.29613324,121850.0,121840.0,0.3168849]
[1759546748977,0.29313324,121850.0,121840.0,0.3168849]
[1759546749180,0.29913324,121850.0,121840.0,0.3168849]
[1759546750617,0.31013324,121850.0,121840.0,0.3168849]
[1759546761459,0.74192637,121850.0,121840.0,0.0002049]
[1759546761712,0.74192637,121850.0,121840.0,0.1110049]
[1759546762392,0.74192637,121850.0,121840.0,0.2028049]
[1759546762615,0.74192637,121850.0,121840.0,0.0002049]
[1759546762839,0.31013324,121850.0,121840.0,0.2775249]
[1759546763060,0.74192637,121850.0,121840.0,0.2775249]
[1759546764393,1.08192637,121850.0,121840.0,0.0002049]
[1759546764598,1.08192637,121850.0,121840.0,0.3169249]
[1759546765376,1.08192637,121850.0,121840.0,0.0002049]
[1759546765578,1.08192637,121850.0,121840.0,0.3169249]
[1759546767760,1.08192637,121850.0,121840.0,0.0002049]
[1759546767961,1.08192637,121850.0,121840.0,0.1091249]
[1759546768772,0.65013324,121850.0,121840.0,0.1091249]
[1759546768990,1.08192637,121850.0,121840.0,0.1091249]
[1759546769864,0.65013324,121850.0,121840.0,0.1091249]
[1759546770087,1.08192637,121850.0,121840.0,0.1091249]
[1759546773406,1.08192637,121850.0,121840.0,0.0002049]
[1759546773651,1.08192637,121850.0,121840.0,0.1768449]
[1759546775778,1.08192637,121850.0,121840.0,0.0002049]
[1759546775997,1.08192637,121850.0,121840.0,0.2320049]
[1759546777353,1.11207827,121850.0,121840.0,0.0002049]
[1759546777558,1.11207827,121850.0,121840.0,0.2768849]
[1759546777997,1.11207827,121850.0,121840.0,0.3169649]
[1759546778853,0.16419013,121810.0,121800.0,0.38553067]
[1759546779082,0.16419013,121810.0,121800.0,0.47085067]
[1759546779297,0.16419013,121810.0,121800.0,0.47167056]
[1759546779949,0.16419013,121810.0,121800.0,0.70311056]
[1759546780182,0.16423943,121810.0,121800.0,0.70511056]
[1759546780438,0.16423943,121810.0,121800.0,0.70711056]
[1759546781802,0.16423943,121810.0,121800.0,0.04907056]
[1759546781957,0.16423943,121810.0,121800.0,0.70711056]
[1759546785446,0.16423943,121810.0,121800.0,0.04907056]
[1759546785674,0.16423943,121810.0,121800.0,0.70711056]
[1759546785927,0.16423943,121810.0,121800.0,0.73279417]
[1759546787306,4.93e-05,121810.0,121800.0,0.73279417]
[1759546787502,0.16423943,121810.0,121800.0,0.89699778]
[1759546787705,0.16423943,121810.0,121800.0,0.73279417]
[1759546788874,0.16423943,121810.0,121800.0,0.74756228]
[1759546792680,0.16423943,121810.0,121800.0,0.66224228]
[1759546792881,0.16423943,121810.0,121800.0,0.74756228]
[1759546794299,0.16423943,121810.0,121800.0,0.91176589]
[1759546796858,4.93e-05,121810.0,121800.0,4.31038689]
[1759546797057,4.93e-05,121810.0,121800.0,4.68810258]
[1759546797266,5.89e-06,121810.0,121800.0,4.78614346]
[1759546798270,5.89e-06,121810.0,121800.0,4.12810346]
[1759546798539,5.89e-06,121810.0,121800.0,4.89941742]
[1759546798694,0.23118418,121850.0,121830.0,0.1641622]
[1759546798865,0.31430624,121850.0,121840.0,0.36098867]
[1759546799068,0.31633624,121850.0,121840.0,0.36098867]
[1759546799282,0.31936624,121850.0,121840.0,0.36098867]
[1759546799708,0.25286859,121850.0,121840.0,0.36098867]
[1759546800068,0.24983859,121850.0,121840.0,0.36098867]
[1759546800270,0.25883859,121850.0,121840.0,0.36098867]
[1759546800470,0.25680859,121850.0,121840.0,0.36098867]
[1759546800671,0.25680859,121850.0,121840.0,0.04422867]
[1759546800898,0.26888859,121850.0,121840.0,0.04422867]
[1759546801296,0.1641497,121840.0,121830.0,0.04422867]
[1759546801498,0.25030176,121840.0,121830.0,0.23442867]
[1759546801766,0.25235176,121840.0,121830.0,0.23442867]
[1759546802208,0.25235176,121840.0,121830.0,0.04422867]
[1759546802403,0.25235176,121840.0,121830.0,0.36090867]
[1759546803026,0.25235176,121840.0,121830.0,0.04422867]
[1759546803206,0.25235176,121840.0,121830.0,0.36090867]
[1759546803406,0.25835176,121840.0,121830.0,0.27562867]
[1759546803628,0.16416317,121830.0,121820.0,0.04422867]
[1759546803805,0.16416317,121830.0,121820.0,0.36090867]
[1759546804018,0.16924317,121830.0,121820.0,0.36090867]
[1759546804221,0.16924317,121830.0,121820.0,0.04422867]
[1759546804391,0.16924317,121830.0,121820.0,0.36131855]
[1759546804805,0.004,121830.0,121820.0,0.5254952]
[1759546805003,0.007,121830.0,121820.0,0.5254952]
[1759546806397,0.007,121830.0,121820.0,0.55220435]
[1759546807998,0.003,121830.0,121820.0,0.55220435]
[1759546808230,0.003,121830.0,121820.0,0.89220435]
[1759546808471,0.001,121830.0,121820.0,0.93157534]
[1759546808842,0.17592334,121850.0,121830.0,0.16416289]
[1759546809186,0.2590454,121850.0,121840.0,0.34611888]
[1759546809338,0.2610954,121850.0,121840.0,0.26087888]
[1759546809536,0.2610954,121850.0,121840.0,0.34615888]
[1759546810361,0.2640954,121850.0,121840.0,0.34615888]
[1759546811184,0.2680954,121850.0,121840.0,0.34615888]
[1759546811785,0.2630154,121850.0,121840.0,0.34615888]
[1759546812466,0.2630154,121850.0,121840.0,0.37286803]
[1759546812669,0.2630154,121850.0,121840.0,0.38332796]
[1759546813463,0.00754956,121850.0,121840.0,0.38332796]
[1759546813901,0.17168579,121850.0,121840.0,0.38332796]
[1759546816249,0.16468579,121850.0,121840.0,0.38332796]
[1759546816669,0.16568579,121850.0,121840.0,0.54747766]
[1759546817063,0.16468579,121850.0,121840.0,0.38332796]
[1759546817491,0.16568579,121850.0,121840.0,0.35388908]
[1759546817924,0.00154956,121850.0,121840.0,0.54746881]
[1759546818127,0.00154956,121850.0,121840.0,0.56218383]
[1759546818373,0.00154956,121850.0,121840.0,0.54266336]
[1759546818595,0.00154956,121850.0,121840.0,0.94152343]
[1759546819202,0.00054956,121850.0,121840.0,0.94152343]
[1759546819567,0.00054956,121850.0,121840.0,4.34214443]
[1759546819772,0.00054956,121850.0,121840.0,4.34414443]
[1759546820108,0.00054956,121850.0,121840.0,4.68530443]
[1759546821011,0.00054956,121850.0,121840.0,4.02742443]
[1759546821161,0.00054956,121850.0,121840.0,4.68534443]
[1759546821793,0.00054956,121850.0,121840.0,4.62648436]
[1759546822173,0.00054956,121850.0,121840.0,4.68534443]
[1759546822370,0.00054956,121850.0,121840.0,4.62648436]
[1759546822955,0.00054956,121850.0,121840.0,4.60185978]
[1759546823470,0.00054956,121850.0,121840.0,3.94393978]
[1759546824095,0.00054956,121850.0,121840.0,4.60181978]
[1759546824270,0.00054956,121850.0,121840.0,4.00279985]
[1759546824599,0.00054956,121850.0,121840.0,4.66067985]
[1759546824720,0.00054956,121850.0,121840.0,4.00279985]
[1759546825126,0.00054956,121850.0,121840.0,4.66067985]
[1759546827166,5.49e-06,121850.0,121840.0,4.66067985]
[1759546829729,5.483e-05,121850.0,121840.0,4.66067985]
[1759546830170,5.483e-05,121850.0,121840.0,4.75741432]
[1759546830572,5.483e-05,121850.0,121840.0,4.84053638]
[1759546831655,5.483e-05,121850.0,121840.0,4.87068828]
[1759546832059,5.483e-05,121850.0,121840.0,4.89530939]
[1759546832754,5.483e-05,121850.0,121840.0,4.83644932]
[1759546833120,5.483e-05,121850.0,121840.0,4.91002441]
[1759546835550,5.483e-05,121850.0,121840.0,5.21002441]
[1759546836568,5.483e-05,121850.0,121840.0,5.20802441]
[1759546837001,5.483e-05,121850.0,121840.0,5.46782441]
[1759546837219,5.483e-05,121850.0,121840.0,5.55310441]
[1759546837614,5.483e-05,121850.0,121840.0,5.55102441]
[1759546838097,5.483e-05,121850.0,121840.0,5.55502441]
[1759546838479,5.483e-05,121850.0,121840.0,4.55614441]
[1759546838642,5.483e-05,121850.0,121840.0,5.55502441]
[1759546839146,5.483e-05,121850.0,121840.0,4.55614441]
[1759546839413,0.00200483,121850.0,121840.0,5.14303526]
[1759546839635,5.483e-05,121850.0,121840.0,5.25502441]
[1759546840283,5.483e-05,121850.0,121840.0,4.91390441]
[1759546840516,5.483e-05,121850.0,121840.0,4.25614441]
[1759546840730,0.00523483,121850.0,121840.0,4.09106842]
[1759546840935,0.00523483,121850.0,121840.0,0.84044963]
[1759546841143,0.00523483,121850.0,121840.0,1.19669885]
[1759546841380,0.00523483,121850.0,121840.0,0.85669885]
[1759546841585,0.00523483,121850.0,121840.0,0.39324613]
[1759546841788,0.16937106,121850.0,121840.0,0.70996613]
[1759546842008,0.00523483,121850.0,121840.0,0.05212613]
[1759546842216,0.00523483,121850.0,121840.0,0.36884613]
[1759546842649,0.00523483,121850.0,121840.0,0.36892613]
[1759546842859,0.16937106,121850.0,121840.0,0.05212613]
[1759546843058,0.16937106,121850.0,121840.0,0.36892613]
[1759546843384,0.00523483,121850.0,121840.0,0.36892613]
[1759546844630,0.00523483,121850.0,121840.0,0.12271077]
[1759546844631,0.27301014,121850.0,121840.0,0.12271077]
[1759546844830,0.25249312,121850.0,121840.0,0.35423077]
[1759546845028,0.25249312,121850.0,121840.0,0.03743077]
[1759546845363,0.25249312,121850.0,121840.0,0.35423077]
[1759546845571,0.25249312,121850.0,121840.0,0.35023077]
[1759546845780,0.25249312,121850.0,121840.0,0.3168]
[1759546845983,0.25249312,121850.0,121840.0,0.3198]
[1759546846193,0.25749312,121850.0,121840.0,0.003]
[1759546846412,0.1641497,121840.0,121830.0,0.02963569]
[1759546846610,0.25050176,121840.0,121830.0,0.17136492]
[1759546846842,0.25245176,121840.0,121830.0,0.17136492]
[1759546847020,0.16416317,121830.0,121810.0,0.38530602]
[1759546847215,0.16416317,121830.0,121820.0,0.08528]
[1759546847463,0.16739317,121830.0,121820.0,0.08528]
[1759546847698,0.16934317,121830.0,121820.0,0.08528]
[1759546848304,0.16934317,121830.0,121820.0,0.31688]
[1759546849241,0.16934317,121830.0,121800.0,0.44044001]
[1759546849456,0.16740701,121820.0,121800.0,0.43075264]
[1759546849665,0.16740701,121820.0,121810.0,0.2316]
[1759546849881,0.16935701,121820.0,121810.0,0.31888]
[1759546850332,0.16935665,121820.0,121810.0,0.31688]
[1759546851386,0.16935665,121820.0,121810.0,0.32488]
[1759546851655,0.16935665,121820.0,121810.0,0.31688]
[1759546851852,0.16935665,121820.0,121810.0,0.31988]
[1759546852523,0.17335665,121820.0,121810.0,0.31988]
[1759546852722,0.17335665,121820.0,121810.0,0.32083409]
[1759546855760,0.25647871,121820.0,121810.0,0.32083409]
[1759546856149,0.004,121820.0,121810.0,0.35150324]
[1759546856342,0.004,121820.0,121810.0,0.32479409]
[1759546857355,0.004,121820.0,121810.0,0.48898422]
[1759546858971,0.004,121820.0,121810.0,0.51569337]
[1759546859395,0.004,121820.0,121810.0,0.51386337]
[1759546860315,0.004,121820.0,121810.0,0.51569337]
[1759546863156,0.004,121820.0,121810.0,4.25431437]
[1759546863776,0.004,121820.0,121810.0,4.33743643]
[1759546865404,0.004,121820.0,121810.0,4.39625311]
[1759546866059,0.004,121820.0,121810.0,4.42088095]
[1759546866697,0.004,121820.0,121810.0,4.45103285]
[1759546867587,0.004,121820.0,121810.0,4.44803285]
[1759546867810,0.06675738,121850.0,121830.0,0.16415161]
[1759546868017,0.06675738,121850.0,121840.0,0.31891]
[1759546868259,0.06675738,121850.0,121840.0,0.31924918]
[1759546868505,0.23089361,121850.0,121840.0,0.31924918]
[1759546868729,0.16439596,121850.0,121840.0,0.31924918]
[1759546869162,0.16839596,121850.0,121840.0,0.31924918]
[1759546869592,0.16439596,121850.0,121840.0,0.31924918]
[1759546869869,0.17039596,121850.0,121840.0,0.31924918]
[1759546870243,0.17639596,121850.0,121840.0,0.31924918]
[1759546870500,0.17835596,121850.0,121840.0,0.31924918]
[1759546870991,0.18132596,121850.0,121840.0,0.31924918]
[1759546871410,0.18132596,121850.0,121840.0,0.36329759]
[1759546871765,0.17835596,121850.0,121840.0,0.36329759]
[1759546872818,0.17835596,121850.0,121840.0,0.04641759]
[1759546873010,0.18132596,121850.0,121840.0,0.00033918]
[1759546873280,0.26444802,121850.0,121840.0,0.00033918]
[1759546873733,0.26444802,121850.0,121840.0,0.31717918]
[1759546874004,0.26444802,121850.0,121840.0,0.00033918]
[1759546874236,0.26444802,121850.0,121840.0,0.31721918]
[1759546875426,0.26444802,121850.0,121840.0,0.00033918]
[1759546875628,0.26444802,121850.0,121840.0,0.31721918]
[1759546886919,0.26444802,121850.0,121840.0,0.02976909]
[1759546887139,0.26444802,121850.0,121840.0,0.34660909]
[1759546890957,0.26444802,121850.0,121840.0,0.34656909]
[1759546893148,0.26444802,121850.0,121840.0,0.08528]
[1759546894340,0.26444802,121850.0,121840.0,0.31676]
[1759546894822,0.10031179,121850.0,121840.0,0.31676]
[1759546895086,0.26444802,121850.0,121840.0,0.31676]
[1759546895759,0.09734179,121850.0,121840.0,0.31883]
[1759546895962,0.09538179,121850.0,121840.0,0.31883]
[1759546896575,0.09736179,121850.0,121840.0,0.31883]
[1759546897841,0.10050179,121850.0,121840.0,0.31883]
[1759546899308,0.10050179,121850.0,121840.0,0.32864537]
[1759546900480,0.10050179,121850.0,121840.0,0.23148]
[1759546900843,0.12101881,121850.0,121840.0,0.31676]
[1759546900967,0.09736179,121850.0,121840.0,0.31883]
[1759546901409,0.10050179,121850.0,121840.0,0.31676]
[1759546903792,0.10050179,121850.0,121840.0,0.32618636]
[1759546904660,0.01225973,121850.0,121840.0,0.49423606]
[1759546905259,0.01225973,121850.0,121840.0,0.49240606]
[1759546905966,0.01225973,121850.0,121840.0,0.01149636]
[1759546906178,0.01225973,121850.0,121840.0,0.32825636]
[1759546907894,0.01225973,121850.0,121840.0,0.49240606]
[1759546908556,0.01225973,121850.0,121840.0,0.49423606]
[1759546910421,0.01225973,121850.0,121840.0,0.55305274]
[1759546916825,0.01225973,121850.0,121840.0,0.57974821]
[1759546917826,0.00625973,121850.0,121840.0,0.57974821]
[1759546918046,0.00025973,121850.0,121840.0,4.60071253]
[1759546918258,0.00525973,121850.0,121840.0,4.60071253]
[1759546918470,0.00525973,121850.0,121840.0,4.01636762]
[1759546918788,0.00525973,121850.0,121840.0,4.67428762]
[1759546919474,0.00925973,121850.0,121840.0,4.67428762]
[1759546919724,0.00425973,121850.0,121840.0,4.67428762]
[1759546919950,0.00325973,121850.0,121840.0,4.01636762]
[1759546920167,0.00425973,121850.0,121840.0,4.67424762]
[1759546920716,0.00425973,121850.0,121840.0,4.01636762]